bitfinex-derivatives/quotes_ETHF0:USTF0_20241022
["timestamp","ask_amount","ask_price","bid_price","bid_amount"]
[1729597056177,3.2078,2638.8,2638.2,0.37928]
[1729597056178,6.1678,2638.5,2638.2,0.37928]
[1729597056485,3.2078,2638.8,2638.1,0.94825]
[1729597056784,0.37922,2638.7,2638.6,0.37923]
[1729597056985,1.70821,2638.8,2638.6,0.37923]
[1729597057185,0.37922,2638.7,2638.6,0.37923]
[1729597057380,1.329,2638.8,2638.6,0.37923]
[1729597057583,0.37922,2638.7,2638.6,0.37923]
[1729597057784,0.37922,2638.7,2638.2,3.90823]
[1729597057785,1.329,2638.8,2638.2,3.90823]
[1729597057985,1.70821,2638.8,2638.7,0.37922]
[1729597058186,1.70821,2638.8,2638.6,0.37922]
[1729597058488,0.37922,2638.7,2638.6,0.37922]
[1729597059393,0.37925,2638.5,2638.4,0.37925]
[1729597059680,2.96,2638.7,2638.4,0.37925]
[1729597059881,0.37925,2638.5,2637.9,3.90833]
[1729597060083,2.96,2638.7,2637.7,7.11617]
[1729597060279,2.96,2638.7,2638.3,0.37927]
[1729597060280,0.37926,2638.4,2638.3,0.37927]
[1729597060485,0.37926,2638.4,2637.9,0.94833]
[1729597060486,0.37928,2638.3,2638.2,0.37928]
[1729597060681,0.37929,2638.3,2638.2,0.37928]
[1729597061396,3.2078,2638.5,2637.9,0.94833]
[1729597061586,3.2078,2638.5,2638.3,0.37926]
[1729597061587,0.37926,2638.4,2638.3,0.37926]
[1729597066388,3.2078,2638.5,2637.9,0.94833]
[1729597066586,0.37927,2638.4,2638.3,0.37926]
[1729597068291,1.74927,2638.4,2638.3,0.37926]
[1729597072397,1.37,2638.6,2638.3,1.37]
[1729597072602,1.37,2638.6,2638.4,0.37924]
[1729597072603,0.37925,2638.5,2638.4,0.37924]
[1729597072791,1.74925,2638.5,2638.4,0.37924]
[1729597074297,1.37,2638.5,2638.4,0.37924]
[1729597075695,1.74924,2638.5,2638.4,0.37924]
[1729597077201,0.37926,2638.4,2638.3,0.37926]
[1729597077393,1.74926,2638.4,2638.3,0.37926]
[1729597077599,1.37,2638.4,2638.3,0.37926]
[1729597079303,1.74926,2638.4,2638.3,0.37926]
[1729597079597,1.37,2638.4,2638.3,0.37926]
[1729597080614,1.74926,2638.5,2638.4,0.37926]
[1729597083610,3.2078,2639.1,2638.4,3.7904]
[1729597083914,1.74922,2638.7,2638.6,0.37922]
[1729597085509,3.2078,2639.1,2638.5,1.37]
[1729597085806,1.37,2639.1,2639.0,1.74917]
[1729597086312,0.37915,2639.2,2639.1,0.37916]
[1729597086313,1.37,2639.2,2639.1,0.37916]
[1729597086611,1.37,2639.2,2639.1,1.74916]
[1729597087011,1.37,2639.2,2639.1,0.37916]
[1729597087814,1.37,2639.2,2639.0,0.37916]
[1729597088006,1.37,2639.1,2639.0,0.37916]
[1729597088409,1.37,2639.1,2639.0,5.53876]
[1729597088614,3.2078,2639.5,2639.0,5.1596]
[1729597088817,3.2078,2639.5,2638.7,0.94803]
[1729597088818,0.37913,2639.4,2639.3,0.37912]
[1729597089109,1.37,2639.4,2639.3,0.37912]
[1729597090011,1.37,2639.4,2639.1,1.37]
[1729597090218,1.37,2639.2,2638.8,4.5778]
[1729597090410,0.37913,2639.3,2639.1,0.37916]
[1729597090713,0.37913,2639.3,2638.9,1.37]
[1729597090916,1.37,2639.1,2639.0,0.37917]
[1729597092313,1.37,2639.1,2639.0,1.74917]
[1729597093513,1.37,2639.4,2639.0,5.53877]
[1729597093820,3.2078,2639.5,2639.4,0.37912]
[1729597095020,1.68307,2639.7,2639.0,0.37917]
[1729597095318,3.2078,2639.8,2639.7,0.37907]
[1729597095520,4.5778,2639.8,2639.7,0.37907]
[1729597097526,4.95686,2639.8,2639.7,0.37907]
[1729597097821,4.95686,2639.8,2639.6,0.37907]
[1729597098016,1.37,2639.7,2639.6,0.37907]
[1729597099017,1.74907,2639.7,2639.6,0.37907]
[1729597100028,1.37,2639.7,2639.4,1.37]
[1729597100225,1.37,2639.5,2639.4,0.3791]
[1729597100414,1.37,2639.5,2639.3,1.37]
[1729597100415,1.74912,2639.5,2639.3,0.37912]
[1729597100620,0.37914,2639.3,2639.2,0.37914]
[1729597100824,1.74914,2639.3,2639.2,0.37914]
[1729597102324,1.74914,2639.3,2639.1,1.37]
[1729597102526,1.74914,2639.2,2639.1,1.74915]
[1729597104222,1.37,2639.2,2638.9,1.37]
[1729597104427,1.37,2639.0,2638.9,1.74919]
[1729597106033,1.74917,2639.0,2638.9,0.37919]
[1729597106335,1.37,2639.0,2638.9,0.37919]
[1729597107432,1.37,2639.0,2638.9,1.74919]
[1729597107632,1.37,2639.0,2638.9,1.37]
[1729597107835,1.37,2639.0,2638.9,1.74919]
[1729597110636,3.2078,2639.2,2638.9,1.37]
[1729597110835,3.58695,2639.2,2639.1,1.74916]
[1729597111035,4.95695,2639.2,2639.1,1.74916]
[1729597112434,4.5778,2639.2,2639.1,1.74916]
[1729597112641,3.2078,2639.2,2639.1,5.53796]
[1729597114536,1.37,2639.5,2639.4,0.37912]
[1729597114740,0.37913,2639.4,2639.3,0.37912]
[1729597114943,1.74913,2639.4,2639.3,0.37912]
[1729597115843,1.37,2639.4,2639.3,0.37912]
[1729597116050,1.74912,2639.4,2639.3,0.37912]
[1729597116842,1.37,2639.4,2639.0,1.37]
[1729597117047,0.37914,2639.3,2639.2,0.37914]
[1729597117254,1.74913,2639.3,2639.2,0.37914]
[1729597117545,0.37915,2639.2,2639.1,0.37915]
[1729597117845,1.74915,2639.2,2639.1,0.37915]
[1729597118046,1.37,2639.2,2638.7,3.2078]
[1729597118253,0.37917,2639.1,2639.0,0.37917]
[1729597118549,1.74917,2639.1,2639.0,0.37917]
[1729597118742,1.37,2639.1,2639.0,0.37917]
[1729597119554,1.74916,2639.1,2639.0,0.37917]
[1729597120650,1.37,2639.1,2639.0,0.37917]
[1729597120956,1.74916,2639.1,2639.0,0.37917]
[1729597124252,1.37,2639.1,2638.9,1.37]
[1729597124449,1.74918,2639.0,2638.9,0.37919]
[1729597124859,0.3792,2638.9,2638.8,0.37919]
[1729597125251,1.7492,2638.9,2638.8,0.37919]
[1729597129457,1.37,2638.9,2638.6,1.37]
[1729597129660,0.37922,2638.8,2638.7,0.37921]
[1729597129854,1.74922,2638.8,2638.7,0.37921]
[1729597131262,1.74922,2638.8,2638.7,1.74921]
[1729597131758,1.37,2638.8,2638.7,1.74921]
[1729597131961,1.37,2639.0,2638.9,0.37916]
[1729597132160,1.37,2639.1,2638.9,1.37]
[1729597132361,1.37,2639.1,2639.0,0.37917]
[1729597134664,1.74916,2639.1,2639.0,0.37917]
[1729597134865,1.37,2639.1,2639.0,0.37917]
[1729597136264,1.37,2639.2,2639.1,0.37916]
[1729597138376,1.74914,2639.2,2639.1,0.37916]
[1729597140465,1.37,2639.2,2639.1,0.37916]
[1729597141069,1.74914,2639.2,2639.1,0.37916]
[1729597142267,1.37,2639.2,2639.1,1.74916]
[1729597142467,1.74913,2639.3,2639.2,0.37914]
[1729597142677,0.37917,2639.2,2639.1,0.37914]
[1729597142866,1.74917,2639.2,2639.1,0.37914]
[1729597146871,0.37919,2639.0,2638.9,0.37916]
[1729597147073,1.74919,2639.0,2638.9,0.37916]
[1729597152877,0.3792,2638.9,2638.6,1.37]
[1729597153079,4.95702,2638.7,2638.6,0.37923]
[1729597153285,0.37926,2638.5,2638.4,0.37924]
[1729597153472,1.74926,2638.5,2638.4,0.37924]
[1729597154582,1.74924,2638.5,2638.4,0.37924]
[1729597154783,1.37,2638.5,2638.4,1.74926]
[1729597154979,1.74924,2638.5,2638.4,0.37926]
[1729597159179,1.74924,2638.5,2638.2,0.37927]
[1729597159180,0.37929,2638.3,2638.2,0.37927]
[1729597159399,1.74929,2638.3,2638.2,0.37927]
[1729597160487,1.37,2638.3,2638.2,0.37927]
[1729597160683,1.74927,2638.3,2638.2,0.37927]
[1729597160986,1.37,2638.3,2638.2,0.37927]
[1729597161391,1.74927,2638.4,2638.2,1.37]
[1729597161590,4.34860131,2638.7,2638.3,1.37]
[1729597161591,3.40054131,2638.7,2638.3,1.37]
[1729597161887,1.74924,2638.5,2638.4,0.37926]
[1729597164194,3.2078,2638.7,2638.4,0.37926]
[1729597164399,1.37,2639.1,2638.6,4.5778]
[1729597164694,1.37,2639.2,2639.0,1.37]
[1729597164891,1.37,2639.0,2638.9,1.74919]
[1729597165191,1.37,2639.0,2638.9,0.37919]
[1729597166187,1.37,2639.1,2639.0,0.37917]
[1729597166383,1.37,2639.1,2639.0,5.53877]
[1729597168201,1.37,2639.1,2639.0,1.74917]
[1729597169996,1.37,2639.1,2639.0,1.37]
[1729597170295,1.37,2639.1,2639.0,1.74917]
[1729597170699,1.37,2639.1,2639.0,0.37917]
[1729597170998,3.2078,2639.3,2639.2,0.37914]
[1729597171204,3.2078,2639.3,2639.2,1.74914]
[1729597172090,4.5778,2639.3,2639.2,1.74914]
[1729597172296,4.5778,2639.3,2639.2,0.37914]
[1729597172492,3.2078,2639.3,2639.2,1.74914]
[1729597175299,4.5778,2639.3,2639.2,0.37914]
[1729597181004,1.37,2639.3,2639.2,0.37914]
[1729597186404,3.2078,2639.5,2639.4,0.37912]
[1729597186602,3.2078,2639.5,2639.4,1.74912]
[1729597186807,4.5778,2639.5,2639.4,1.74912]
[1729597188709,4.5778,2639.5,2639.4,0.37912]
[1729597189100,1.37,2639.5,2639.4,0.37912]
[1729597189504,4.5778,2639.5,2639.4,0.37912]
[1729597190002,4.9569,2639.5,2639.4,0.37912]
[1729597191705,1.7491,2639.5,2639.4,0.37912]
[1729597191899,4.9569,2639.5,2639.4,0.37912]
[1729597193810,1.7491,2639.5,2639.4,0.37912]
[1729597194115,4.9569,2639.5,2639.4,0.37912]
[1729597197414,1.7491,2639.5,2639.4,0.37912]
[1729597197614,4.9569,2639.5,2639.4,0.37912]
[1729597200310,4.5778,2639.5,2639.4,0.37912]
[1729597202116,4.9569,2639.5,2639.4,0.37912]
[1729597205725,4.9569,2639.5,2639.4,1.74912]
[1729597205726,3.2078,2639.5,2639.4,1.74912]
[1729597206025,5.6798,2639.5,2639.4,1.74912]
[1729597206526,3.2078,2639.9,2639.8,0.37906]
[1729597206719,4.5778,2639.9,2639.8,0.37906]
[1729597207425,4.5778,2639.9,2639.8,1.74906]
[1729597207619,1.37,2639.9,2639.8,0.37906]
[1729597207822,1.74904,2639.9,2639.8,0.37906]
[1729597209512,5.53704,2639.9,2639.8,0.37906]
[1729597210633,1.74904,2639.9,2639.8,0.37906]
[1729597212220,4.3098,2640.0,2639.7,1.37]
[1729597212430,4.68884,2640.0,2639.9,0.37904]
[1729597212733,6.05884,2640.0,2639.9,0.37904]
[1729597214023,0.37906,2639.9,2639.8,0.37905]
[1729597214225,0.3791,2639.6,2639.5,0.37909]
[1729597214431,0.3791,2639.6,2639.4,0.3791]
[1729597214432,0.37911,2639.5,2639.4,0.3791]
[1729597214620,0.37913,2639.4,2639.3,0.37912]
[1729597214932,1.74913,2639.4,2639.3,0.37912]
[1729597216525,3.2078,2639.6,2639.2,1.37]
[1729597216732,4.2708,2639.6,2639.5,1.7491]
[1729597216928,6.01989,2639.6,2639.5,0.3791]
[1729597217631,4.95689,2639.6,2639.5,0.3791]
[1729597218219,3.58689,2639.6,2639.5,0.3791]
[1729597219225,0.37913,2639.4,2639.3,0.37911]
[1729597219421,3.33913,2639.4,2639.3,0.37911]
[1729597219836,0.37911,2639.5,2639.4,0.3791]
[1729597220833,0.37914,2639.4,2639.3,0.37912]
[1729597225635,0.37911,2639.5,2639.4,0.3791]
[1729597225831,0.3791,2639.5,2639.4,0.3791]
[1729597226037,3.5869,2639.6,2639.5,0.3791]
[1729597226927,3.58689,2639.6,2639.5,0.3791]
[1729597227443,3.2078,2639.6,2639.5,0.3791]
[1729597229736,3.58689,2639.6,2639.5,0.3791]
[1729597230943,0.37913,2639.4,2639.3,0.3791]
[1729597233441,6.1678,2639.6,2639.2,0.94785]
[1729597233637,4.023,2639.8,2639.3,0.94783]
[1729597233838,0.37909,2639.7,2639.6,0.37907]
[1729597234338,0.37911,2639.5,2639.4,0.37909]
[1729597238244,1.74911,2639.5,2639.4,0.37909]
[1729597241243,1.37,2639.5,2639.4,0.37909]
[1729597241542,1.7491,2639.5,2639.4,0.37909]
[1729597257460,0.37917,2639.2,2639.1,0.37914]
[1729597257664,1.37,2639.2,2639.1,0.37914]
[1729597257863,1.74914,2639.2,2639.1,0.37914]
[1729597260674,3.58691,2639.5,2639.4,0.37912]
[1729597260971,6.00591,2639.5,2639.4,0.37912]
[1729597261665,5.6268,2639.5,2639.4,0.37912]
[1729597262067,4.2568,2639.5,2639.4,0.37912]
[1729597262260,6.0059,2639.5,2639.4,0.37912]
[1729597264869,5.6268,2639.5,2639.4,0.37912]
[1729597265171,6.0059,2639.5,2639.4,0.37912]
[1729597267766,4.9569,2639.5,2639.4,0.37912]
[1729597271667,4.5778,2639.5,2639.1,0.94789]
[1729597271867,0.37917,2639.1,2639.0,0.37916]
[1729597272067,1.74917,2639.1,2639.0,0.37916]
[1729597273275,0.37922,2638.8,2638.7,0.37921]
[1729597273468,0.37922,2638.8,2638.5,0.37923]
[1729597273469,0.37924,2638.6,2638.5,0.37923]
[1729597273667,1.74922,2638.7,2638.5,1.37]
[1729597273871,1.74923,2638.6,2638.5,0.37924]
[1729597275472,1.37,2638.6,2638.5,0.37924]
[1729597275670,1.37,2638.6,2638.1,4.19838007]
[1729597275869,0.37926,2638.5,2638.4,0.37925]
[1729597276069,1.74926,2638.5,2638.4,0.37925]
[1729597276270,0.37929,2638.3,2638.2,0.37928]
[1729597276478,1.74929,2638.3,2638.2,0.37928]
[1729597276980,1.37,2638.3,2638.2,0.37928]
[1729597277274,1.37,2638.3,2638.2,1.74928]
[1729597277674,1.055,2638.5,2638.2,1.74928]
[1729597277871,1.37,2638.5,2638.4,1.74926]
[1729597278578,1.74924,2638.5,2638.4,0.37926]
[1729597283382,1.37,2638.5,2638.4,0.37926]
[1729597284279,1.74924,2638.5,2638.4,0.37926]
[1729597284673,1.37,2638.5,2638.4,0.37926]
[1729597284978,4.5778,2638.6,2638.5,0.37924]
[1729597290371,1.37,2638.6,2638.5,0.37924]
[1729597296286,1.37,2638.6,2638.5,1.74924]
[1729597297383,0.3792,2638.8,2638.5,1.74924]
[1729597297585,1.37,2638.7,2638.6,0.37923]
[1729597297889,1.37,2638.7,2638.6,1.74923]
[1729597298088,1.37,2638.7,2638.6,4.16883]
[1729597298385,1.74922,2638.7,2638.6,4.16883]
[1729597298890,1.74922,2638.7,2638.6,0.37923]
[1729597299581,1.37,2638.7,2638.6,0.37923]
[1729597299788,1.37,2638.7,2638.6,4.16883]
[1729597299980,1.74922,2638.7,2638.6,4.16883]
[1729597300182,1.37,2638.7,2638.6,0.37923]
[1729597300490,1.37,2638.7,2638.6,5.53883]
[1729597300694,1.37,2638.7,2638.6,4.16883]
[1729597301386,1.37,2638.9,2638.7,0.37922]
[1729597301586,1.37,2638.8,2638.7,0.37922]
[1729597302088,1.37,2638.8,2638.7,4.16882]
[1729597302792,1.7492,2638.8,2638.7,0.37922]
[1729597306789,1.03,2638.9,2638.5,2.3181]
[1729597306985,1.4092,2638.9,2638.8,0.3792]
[1729597307189,2.77919,2638.9,2638.8,0.3792]
[1729597309497,4.95695,2639.2,2639.1,0.37916]
[1729597309702,4.5778,2639.2,2639.1,0.37916]
[1729597310398,4.95694,2639.2,2639.1,0.37916]
[1729597316398,1.74914,2639.2,2639.1,0.37916]
[1729597316595,4.95694,2639.2,2639.1,0.37916]
[1729597320397,5.9478,2639.2,2638.6,4.15585]
[1729597320594,1.37,2638.7,2638.6,0.37923]
[1729597320794,1.74922,2638.7,2638.6,0.37923]
[1729597320999,1.37,2638.7,2638.6,0.37923]
[1729597322399,3.2078,2638.9,2638.6,6.10767]
[1729597322708,1.37,2639.1,2639.0,0.37917]
[1729597323098,1.37,2639.2,2639.1,0.37916]
[1729597323909,1.74914,2639.2,2639.1,0.37916]
[1729597332308,0.37917,2639.1,2639.0,0.37916]
[1729597332505,1.74917,2639.1,2639.0,0.37916]
[1729597335522,1.37,2639.1,2639.0,0.37916]
[1729597335818,1.74916,2639.1,2639.0,0.37916]
[1729597341316,0.3792,2638.9,2638.8,0.37918]
[1729597341518,0.3792,2638.9,2638.7,0.37922]
[1729597341519,1.37,2638.9,2638.7,0.37922]
[1729597341719,1.74919,2638.9,2638.8,0.3792]
[1729597342316,1.37,2638.9,2638.5,0.99058007]
[1729597342620,1.37,2638.9,2638.4,4.69367011]
[1729597342621,0.37923,2638.7,2638.6,0.37921]
[1729597343423,4.15578,2639.0,2638.4,2.31814]
[1729597343618,1.37,2638.6,2638.5,1.74924]
[1729597343821,1.37,2638.8,2638.7,0.37922]
[1729597344019,1.37,2638.8,2638.7,1.74922]
[1729597344422,1.37,2638.8,2638.7,0.37922]
[1729597344819,1.7492,2638.8,2638.7,0.37922]
[1729597347922,1.37,2638.8,2638.2,0.94819]
[1729597348230,1.37,2638.3,2638.2,0.37929]
[1729597348424,1.37,2638.3,2638.2,1.74929]
[1729597348619,1.37,2638.3,2638.2,0.37929]
[1729597348620,1.74927,2638.3,2638.2,0.37929]
[1729597349522,1.37,2638.3,2638.2,0.37929]
[1729597349723,1.74927,2638.3,2638.2,1.74929]
[1729597349923,1.37,2638.3,2638.2,1.74929]
[1729597350229,1.74927,2638.3,2638.2,0.37929]
[1729597351326,1.37,2638.3,2638.2,0.37929]
[1729597352531,1.74927,2638.3,2638.2,0.37929]
[1729597356928,0.37932,2638.1,2638.0,0.37931]
[1729597357236,1.74932,2638.1,2638.0,0.37931]
[1729597357433,1.74932,2638.1,2637.9,0.37932]
[1729597357434,0.37932,2638.0,2637.9,0.37932]
[1729597357634,1.74932,2638.0,2637.9,0.37932]
[1729597359223,0.37935,2637.9,2637.8,0.37934]
[1729597359429,1.74935,2637.9,2637.8,0.37934]
[1729597359937,1.37,2637.9,2637.8,1.74934]
[1729597361035,1.74933,2637.9,2637.8,1.74934]
[1729597361429,1.37,2637.9,2637.8,1.74934]
[1729597361826,1.74933,2637.9,2637.8,1.74934]
[1729597362033,1.37,2637.9,2637.8,1.74934]
[1729597362736,1.74933,2637.9,2637.8,1.74934]
[1729597363233,1.37,2637.9,2637.8,1.74934]
[1729597363730,1.37,2637.9,2637.8,1.74935]
[1729597365237,0.984,2638.4,2637.8,5.1612]
[1729597365437,0.37928,2638.3,2638.2,0.37927]
[1729597365745,1.74928,2638.3,2638.2,0.37927]
[1729597369039,0.37931,2638.2,2638.1,0.37929]
[1729597369245,1.74931,2638.2,2638.1,0.37929]
[1729597370239,1.37,2638.2,2638.1,0.37929]
[1729597370738,1.37,2638.2,2638.1,1.37]
[1729597370940,1.37,2638.2,2638.1,1.7493]
[1729597371141,1.37,2638.2,2638.1,0.3793]
[1729597372449,1.37,2638.2,2638.1,1.7493]
[1729597373439,1.37,2638.3,2638.2,0.37929]
[1729597373749,1.37,2638.4,2638.2,1.37]
[1729597373940,1.37,2638.4,2638.3,1.74927]
[1729597375247,0.37922,2638.8,2638.7,0.3792]
[1729597375446,0.37919,2638.9,2638.8,0.3792]
[1729597375837,1.74919,2638.9,2638.8,0.3792]
[1729597378451,1.37,2638.9,2638.8,0.3792]
[1729597378754,1.74919,2638.9,2638.8,0.3792]
[1729597380151,0.37919,2639.0,2638.9,0.37917]
[1729597380352,1.74919,2639.0,2638.9,0.37917]
[1729597382645,1.37,2639.0,2638.6,0.94808]
[1729597382954,0.37921,2638.9,2638.8,0.37919]
[1729597384155,1.74921,2638.9,2638.8,0.37919]
[1729597386754,1.74919,2638.9,2638.8,0.37919]
[1729597390659,1.74918,2639.0,2638.9,0.37919]
[1729597390861,1.74917,2639.0,2638.9,1.74919]
[1729597391060,1.74917,2639.0,2638.9,0.37919]
[1729597395059,1.37,2639.0,2638.9,1.74919]
[1729597395563,0.37915,2639.2,2639.0,0.37917]
[1729597395767,1.37,2639.2,2639.1,1.74916]
[1729597395953,1.74914,2639.2,2639.1,1.74916]
[1729597396154,1.37,2639.2,2639.1,0.37916]
[1729597396760,1.74914,2639.2,2639.1,0.37916]
[1729597399770,1.37,2639.2,2639.1,0.37916]
[1729597401765,1.37,2639.2,2639.1,1.74916]
[1729597402774,1.74914,2639.2,2639.1,1.74916]
[1729597405283,1.74914,2639.2,2639.1,0.37916]
[1729597405783,1.37,2639.2,2638.7,3.2078]
[1729597405979,0.94805,2638.7,2638.1,3.2078]
[1729597406176,1.37,2638.8,2638.2,1.37]
[1729597406177,0.37925,2638.5,2638.2,1.37]
[1729597406386,1.37,2638.4,2638.3,0.37927]
[1729597406990,1.74926,2638.4,2638.3,0.37927]
[1729597407292,1.74927,2638.4,2638.3,0.37927]
[1729597407583,1.37,2638.4,2638.3,0.37927]
[1729597408385,1.74926,2638.4,2638.3,0.37927]
[1729597408783,1.37,2638.4,2638.3,0.37927]
[1729597408985,1.74926,2638.4,2638.3,0.37927]
[1729597412096,1.37,2638.4,2638.3,1.74927]
[1729597412489,2.01402,2638.8,2638.3,1.37]
[1729597412689,0.37924,2638.6,2638.5,0.37923]
[1729597413190,0.37926,2638.5,2638.4,0.37925]
[1729597413489,1.74926,2638.5,2638.4,0.37925]
[1729597424501,0.37924,2638.6,2638.5,0.37924]
[1729597424698,1.74924,2638.6,2638.5,0.37924]
[1729597428693,0.94794,2639.0,2638.5,1.37]
[1729597428896,1.7492,2638.9,2638.8,1.37]
[1729597429102,1.37,2638.9,2638.7,1.37]
[1729597429291,0.3792,2638.8,2638.7,1.7492]
[1729597429492,1.7492,2638.8,2638.7,1.7492]
[1729597431590,1.7492,2638.8,2638.7,0.3792]
[1729597432700,1.7492,2638.8,2638.7,1.7492]
[1729597434399,1.7492,2638.8,2638.7,0.3792]
[1729597434802,1.7492,2638.8,2638.7,1.7492]
[1729597435601,1.37,2638.8,2638.7,1.7492]
[1729597436408,1.7492,2638.8,2638.7,1.7492]
[1729597436809,1.37,2638.8,2638.7,1.7492]
[1729597437106,1.7492,2638.8,2638.7,1.7492]
[1729597438005,0.3792,2638.8,2638.7,1.7492]
[1729597438202,1.7492,2638.8,2638.7,1.7492]
[1729597440608,1.37,2638.8,2638.7,1.7492]
[1729597441004,1.7492,2638.8,2638.7,1.7492]
[1729597441210,1.37,2638.8,2638.7,1.7492]
[1729597441612,0.37919,2639.0,2638.9,0.37919]
[1729597441807,1.74919,2639.0,2638.9,0.37919]
[1729597442110,3.2078,2639.1,2638.9,5.1596]
[1729597442311,3.2078,2639.1,2639.0,1.74917]
[1729597443309,3.58696,2639.1,2639.0,1.74917]
[1729597444409,3.2078,2639.1,2639.0,1.74917]
[1729597444617,3.2078,2639.1,2639.0,5.53877]
[1729597446213,3.58696,2639.1,2639.0,1.74917]
[1729597446603,3.2078,2639.1,2639.0,1.74917]
[1729597447009,3.2078,2639.1,2639.0,5.53877]
[1729597450122,3.58696,2639.1,2639.0,5.53877]
[1729597450723,3.2078,2639.1,2639.0,5.53877]
[1729597451422,3.58696,2639.1,2639.0,5.53877]
[1729597451721,3.2078,2639.1,2639.0,5.53877]
[1729597453424,0.37912,2639.5,2639.4,0.3791]
[1729597453624,3.58689,2639.6,2639.5,0.3791]
[1729597453920,4.95689,2639.6,2639.5,1.7491]
[1729597455230,3.2078,2639.6,2639.5,1.7491]
[1729597455521,3.58689,2639.6,2639.5,1.7491]
[1729597455717,0.37908,2639.7,2639.6,0.37909]
[1729597455923,1.74908,2639.7,2639.6,0.37909]
[1729597457720,0.37906,2639.9,2639.8,0.37904]
[1729597457926,1.74906,2639.9,2639.8,0.37904]
[1729597463322,0.3791,2639.6,2639.5,0.37908]
[1729597463524,1.37,2639.6,2639.2,3.2078]
[1729597463723,1.37,2639.3,2639.2,1.74913]
[1729597463914,1.74913,2639.4,2639.3,0.37912]
[1729597464122,1.74913,2639.4,2639.3,1.74912]
[1729597465120,3.58692,2639.5,2639.4,0.37912]
[1729597465317,4.95692,2639.5,2639.4,0.37912]
[1729597466029,1.74912,2639.5,2639.4,0.37912]
[1729597467032,1.37,2639.5,2639.3,1.37]
[1729597467227,1.74911,2639.5,2639.4,0.37912]
[1729597478423,0.37914,2639.3,2639.2,1.74912]
[1729597478833,1.74914,2639.3,2639.2,0.37912]
[1729597481832,0.37917,2639.2,2639.1,0.37914]
[1729597482134,1.74917,2639.2,2639.1,0.37914]
[1729597486136,1.74917,2639.2,2638.9,0.94797]
[1729597486137,0.37919,2639.0,2638.9,0.37917]
[1729597486336,1.74919,2639.0,2638.9,0.37917]
[1729597486738,1.74919,2639.0,2638.9,1.74917]
[1729597490943,1.74917,2639.0,2638.9,1.74917]
[1729597491241,1.37,2639.0,2638.9,1.74917]
[1729597491837,1.74917,2639.0,2638.9,1.74917]
[1729597492038,1.37,2639.0,2638.9,1.74917]
[1729597492236,1.74917,2639.0,2638.9,1.74917]
[1729597492734,1.37,2639.0,2638.9,1.74917]
[1729597494530,1.74917,2639.0,2638.9,1.74917]
[1729597495233,1.37,2639.0,2638.9,1.74917]
[1729597496736,1.37,2639.1,2639.0,0.37917]
[1729597496945,1.37,2639.1,2639.0,1.74917]
[1729597497740,3.2078,2639.5,2639.0,6.5296]
[1729597497936,0.3791,2639.6,2639.5,0.37909]
[1729597498136,0.37911,2639.5,2639.4,0.3791]
[1729597498338,1.74911,2639.5,2639.4,0.3791]
[1729597498939,1.7491,2639.5,2639.4,0.3791]
[1729597499742,1.37,2639.5,2639.4,0.3791]
[1729597500240,1.37,2639.5,2639.4,1.7491]
[1729597501039,1.37,2639.7,2639.6,0.37907]
[1729597501240,1.74907,2639.7,2639.6,0.37907]
[1729597502234,1.37,2639.7,2639.6,0.37907]
[1729597502445,1.74907,2639.7,2639.6,0.37907]
[1729597502645,0.37912,2639.5,2639.4,0.3791]
[1729597502850,0.37914,2639.3,2639.2,0.37912]
[1729597503142,1.74914,2639.3,2639.2,0.37912]
[1729597504443,1.74913,2639.3,2639.2,1.74912]
[1729597505949,1.74913,2639.3,2639.2,0.37912]
[1729597506140,1.37,2639.3,2639.1,1.37]
[1729597506341,0.37917,2639.1,2639.0,0.37916]
[1729597506640,1.74917,2639.1,2639.0,0.37916]
[1729597506849,1.74917,2639.1,2639.0,1.74916]
[1729597507248,1.74917,2639.1,2639.0,0.37916]
[1729597510650,1.37,2639.1,2638.5,3.2078]
[1729597510944,1.37,2638.7,2638.6,1.74923]
[1729597511741,1.37,2638.8,2638.6,1.37]
[1729597511941,1.37,2638.8,2638.5,0.9481]
[1729597511942,1.37,2638.8,2638.7,1.74922]
[1729597512939,1.7492,2638.8,2638.7,0.37922]
[1729597513142,0.37924,2638.5,2638.4,1.36915674]
[1729597513447,1.37,2638.8,2638.4,1.37]
[1729597513750,1.74921,2638.8,2638.7,1.74922]
[1729597514047,1.74921,2638.8,2638.7,0.37922]
[1729597516052,1.7492,2638.8,2638.7,0.37922]
[1729597516551,1.37,2638.8,2638.7,0.37922]
[1729597517153,1.37,2638.9,2638.7,1.74922]
[1729597517347,1.37,2638.9,2638.8,0.3792]
[1729597517653,1.74919,2638.9,2638.8,0.3792]
[1729597517847,1.37,2638.9,2638.3,0.98991674]
[1729597518150,1.37,2638.5,2638.4,1.74926]
[1729597519154,0.37929,2638.3,2638.2,0.37928]
[1729597519349,1.74929,2638.3,2638.2,0.37928]
[1729597520453,0.3793,2638.2,2638.1,0.37929]
[1729597520752,0.37928,2638.3,2638.2,0.37927]